Cogmind - Beta 9.6 @@@ ROGUE MODE // 2020.08.16 @ 17:45:05 Player: Rusllan Result: Destroyed by G-34 Mercenary with Small Laser Performance ------------- Evolutions (0) 0 Regions Visited (1) 200 Robots Destroyed (17) 85 Value Destroyed (389) 389 Prototype IDs (3) 60 Alien Tech Used (0) 0 Bonus (0) 0 TOTAL SCORE: 734 Bonus ------- None Cogmind --------- Core Integrity 0/250 Matter 290/300 Energy 250/250 System Corruption 0% Temperature Cool (255) Movement Treading (160) Location -10/Materials Parts ------- > --- POWER (1) -------- Ion Engine > --- PROPULSION (2) --- Light Treads Light Treads > --- UTILITY (2) ------ Small Storage Unit Medium Armor Plating > --- WEAPON (2) ------- Small Laser Small Laser > --- INVENTORY (6) ---- Heat Sink Medium Battery (200) Medium Armor Plating Medium Armor Plating Medium Armor Plating Small Laser Peak State ------------ > --- POWER ------------ Ion Engine > --- PROPULSION ------- Light Treads Light Treads > --- UTILITY ---------- Small Storage Unit Targeting Computer > --- WEAPON ----------- Small Laser Light Assault Rifle > --- INVENTORY -------- Heat Sink Medium Battery Medium Armor Plating Medium Armor Plating Medium Armor Plating Medium Armor Plating [Rating: 8] Favorites ----------- Power Ion Engine Engine Ion Engine Propulsion Light Treads Treads Light Treads Leg Aluminum Leg Utility Small Storage Unit Storage Small Storage Unit Processor Targeting Computer Protection Medium Armor Plating Weapon Small Laser Energy Gun Small Laser Ballistic Gun Light Assault Rifle Build | -11 -10 ------- Run | Scr Mat Slots Evolved . | . . Power . | . . Propulsion . | . . Utility . | . . Weapon . | . . Parts Attached 17 | 7 10 Power 3 | 1 2 Engine 3 | 1 2 Core . | . . Reactor . | . . Propulsion 5 | 3 2 Treads 4 | 2 2 Leg 1 | 1 . Wheel . | . . Hover . | . . Flight . | . . Utility 3 | 1 2 Device . | . . Storage 1 | 1 . Processor 1 | . 1 Hackware . | . . Protection 1 | . 1 Artifact . | . . Weapon 6 | 2 4 Energy Gun 5 | 2 3 Energy Cannon . | . . Ballistic Gun 1 | . 1 Ballistic Cannon . | . . Launcher . | . . Special Weapon . | . . Impact Weapon . | . . Slashing Weapon . | . . Piercing Weapon . | . . Special Melee Weapon . | . . Unidentified Prototypes . | . . Parts Lost 2 | . 2 Power . | . . Propulsion . | . . Utility . | . . Weapon 2 | . 2 Highest Loss Streak 2 | . 2 Average Slot Usage (%) 96 | . 96 Engine 14 | . 14 Treads 26 | . 26 Storage 14 | . 14 Processor 7 | . 7 Protection 6 | . 6 Energy Gun 23 | . 23 Ballistic Gun 3 | . 3 Naked Turns . | . . Heaviest Build 18 | 11 18 Greatest Support 40 | 20 40 Greatest Overweight (x) 1 | 1 . Average Overweight (x) . | . . Largest Inventory Capacity 6 | 6 6 Average Capacity 5 | 5 6 Most Carried 6 | 4 6 Average Carried 3 | 1 3 Final Capacity 6 | 6 6 Final Carried 6 | 1 6 Class Distribution -------------------- 100% | Mutant Dominant Class ---------------- Mutant | -10/Materials Resources | -11 -10 ----------- Run | Scr Mat Matter Collected 394 | 167 227 Remotely . | . . Salvage Created 597 | . 597 Parts 34 | . 34 Haulers Intercepted . | . . Recyclers Shooed 2 | . 2 Parts Field Recycled . | . . Retrieved Matter . | . . Parts Self-Destructed . | . . Prevented . | . . Kills | -11 -10 ------- Run | Scr Mat Combat Hostiles Destroyed 12 | . 12 Guns 12 | . 12 Classes Destroyed 5 | . 5 Worker 2 | . 2 Recycler 1 | . 1 Watcher 2 | . 2 Swarmer 3 | . 3 Grunt 9 | . 9 Best Kill Streak 3 | . 3 Combat Bots Only 3 | . 3 Max Kills in Single Turn 1 | . 1 Gunslinging . | . . Exploded . | . . Melee . | . . Uniques/NPCs Destroyed . | . . Combat | -11 -10 -------- Run | Scr Mat Damage Taken 811 | . 811 Core 261 | . 261 Absorbed by Shields . | . . Core Remaining (%) 100 | 100 . Volleys Fired 95 | . 95 Largest 2 | . 2 Hottest 80 | . 80 Shots Fired 159 | . 159 Gun 159 | . 159 Cannon . | . . Launcher . | . . Special . | . . Kinetic 34 | . 34 Thermal 125 | . 125 Explosive . | . . Electromagnetic . | . . Robot Hit Streak 9 | . 9 Robot Miss Streak 4 | . 4 Penetration Max . | . . Secondary Targets . | . . Shots Hit Robots 90 | . 90 Core Hits 32 | . 32 Critical Hits . | . . Critical Kills . | . . Critical Parts Destroyed . | . . Melee Attacks . | . . Impact . | . . Slashing . | . . Piercing . | . . Sneak Attacks . | . . Combat Hostiles . | . . Follow-up Attacks . | . . Damage Inflicted 758 | . 758 Guns 758 | . 758 Cannons . | . . Explosions . | . . Melee . | . . Ramming . | . . Kinetic 174 | . 174 Thermal 584 | . 584 Explosive . | . . Electromagnetic . | . . Impact . | . . Slashing . | . . Piercing . | . . Highest Corruption . | . . Average Corruption . | . . Corruption Purged . | . . Overload Shots . | . . Overflow Damage . | . . Projectiles . | . . Explosions . | . . Melee . | . . Knockbacks . | . . Impact . | . . Kinetic . | . . Secondary . | . . Self-Inflicted Damage . | . . Shots . | . . Rammed 1 | . 1 Targets Rammed 1 | . 1 Kicked . | . . Crushed . | . . Highest Temperature 249 | . 249 Average Temperature 54 | . 54 Received Heat Transfer 363 | . 363 Siege Activations . | . . Robots Corrupted . | . . Combat Hostiles . | . . Parts Fried . | . . Impact Corruptions . | . . Robots Melted . | . . Combat Hostiles . | . . Parts Melted 1 | . 1 Heat Transferred 1325 | . 1325 Parts Sabotaged . | . . Parts Stolen . | . . Parts Stripped . | . . Power Chain Reactions . | . . Missiles Intercepted . | . . Alert | -11 -10 ------- Run | Scr Mat Peak Influence 192 | . 192 Average Influence 82 | . 88 Maximum Alert Level . | . . Low Security (%) 100 | 100 100 Level 1 . | . . Level 2 . | . . Level 3 . | . . Level 4 . | . . Level 5 . | . . High Security . | . . Max Security . | . . Squads Dispatched 6 | . 6 Investigation 5 | . 5 Extermination . | . . Reinforcement 1 | . 1 Assault . | . . Garrison . | . . Intercept . | . . Construction Impeded . | . . Haulers Reinforced . | . . Stealth | -11 -10 --------- Run | Scr Mat Distress Signals 2 | . 2 Communications Jammed . | . . Distress Signals . | . . Times Spotted 27 | . 27 Peak Tracking Total 4 | . 4 Tactical Retreats . | . . Traps | -11 -10 ------- Run | Scr Mat Traps Triggered 2 | . 2 Indirectly . | . . Trap Hack Attempts . | . . Triggered . | . . Disarmed . | . . Reprogrammed . | . . Reused . | . . Traps Extracted . | . . Installed . | . . Triggered . | . . Machines | -11 -10 ---------- Run | Scr Mat Machines Disabled . | . . Max in Single Turn . | . . Machines Sabotaged . | . . Garrisons Compromised . | . . Overloaded Fab Kills . | . . Fab Network Shutdowns . | . . Hacking | -11 -10 --------- Run | Scr Mat Machines Accessed 7 | . 7 Terminals 4 | . 4 Fabricators . | . . Repair Stations 1 | . 1 Recycling Units 2 | . 2 Scanalyzers . | . . Garrison Access . | . . Total Hacks 28 | . 28 Successful 16 | . 16 Failed 12 | . 12 Catastrophic 3 | . 3 Database Lockouts . | . . Manual . | . . Terminals 16 | . 16 Fabricators . | . . Repair Stations 6 | . 6 Recycling Units 6 | . 6 Scanalyzers . | . . Garrison Access . | . . Terminal Hacks 8 | . 8 Record 6 | . 6 Prototype ID Bank 1 | . 1 Zone Layout 1 | . 1 Fabricator Hacks . | . . Repair Station Hacks 4 | . 4 Scan Component 2 | . 2 Repair 2 | . 2 Recycling Unit Hacks 4 | . 4 Report Inventory 1 | . 1 Retrieve Matter 1 | . 1 Retrieve Components 2 | . 2 Scanalyzer . | . . Garrison Access Hacks . | . . Unauthorized Hacks . | . . Terminals . | . . Fabricators . | . . Repair Stations . | . . Recycling Units . | . . Scanalyzers . | . . Garrison Access . | . . Data Cores Recovered . | . . Used . | . . Hacking Detections 7 | . 7 Full Trace Events 6 | . 6 Feedback Events . | . . Feedback Blocked . | . . Robot Schematics Acquired . | . . Robots Built . | . . Matter . | . . Time . | . . Total Robot Build Rating . | . . Part Schematics Acquired . | . . Parts Built . | . . Matter . | . . Time . | . . Total Part Build Rating . | . . Parts Repaired 2 | . 2 Time 52 | . 52 Parts Recycled . | . . Recycled Matter . | . . Retrieved Matter . | . . Retrieved Components 2 | . 2 Parts Scanalyzed . | . . Part Schematics Acquired . | . . Parts Damaged . | . . Bothacking | -11 -10 ------------ Run | Scr Mat Used RIF Installer . | . . Robots Hacked . | . . Non-combat . | . . Combat . | . . Robot Hacks Applied . | . . Relay Couplers Released . | . . Robots Rewired . | . . Allies Hacked . | . . Hacks Repelled . | . . Allies | -11 -10 -------- Run | Scr Mat Total Allies . | . . Largest Group . | . . Highest-Rated Group . | . . Highest-Rated Ally . | . . Total Orders . | . . Ally Attacks . | . . Total Damage . | . . Kills . | . . Allies Corrupted . | . . Allies Melted . | . . Intel | -11 -10 ------- Run | Scr Mat Robot Analysis Total . | . . Derelict Logs Recovered . | . . Drone Launches . | . . Drone Recoveries . | . . Exploration | -11 -10 ------------- Run | Scr Mat Turns Passed 1114 | 73 1041 Spaces Moved 490 | 47 443 Core 19 | 19 . Treads 471 | 28 443 Legs . | . . Wheels . | . . Hover . | . . Flight . | . . Fastest Speed 50 | 50 160 Average Speed 156 | 121 160 Slowest Speed 160 | 160 160 Overloaded Moves . | . . Propulsion Burnouts . | . . Robots Hopped . | . . Cave-ins Triggered . | . . Exploration Rate (%) 37 | 3 72 Regions Visited 1 Branch Regions . Pre-discovered Areas . | . . Known Exits Taken . | . . Unknown Exits Taken 1 | 1 . Scrap Searched . | . . Spaces Dug . | . . Terrain Destroyed . | . . Melee . | . . Projectile . | . . AOE . | . . Actions | -11 -10 --------- Run | Scr Mat Total 687 | 64 623 Wait 52 | . 52 Move 489 | 46 443 Hop . | . . Pick Up 25 | 9 16 Fast Attach . | . . Attach 13 | 7 6 Detach . | . . Swap 4 | . 4 Drop 8 | 2 6 Fire 95 | . 95 Melee . | . . Ram . | . . Kick . | . . Crush 1 | . 1 Escape Stasis . | . . Rewire . | . . Trap . | . . Miscellaneous . | . . Route ------- -11/Scrapyard -10/Materials (discovered 4 exits: [*Mat x2] / [*Min x2]) History --------- Turn | Location | Event 9 | -11/Scrapyard | Discovered new exit (range 15) 74 | -11/Scrapyard | Entered Materials 311 | -10/Materials | Build established: Mutant 602 | -10/Materials | Core integrity fell below 50% 638 | -10/Materials | Discovered new exit (range 13) 721 | -10/Materials | Repaired Lgt. Treads 747 | -10/Materials | Repaired Lgt. Treads 845 | -10/Materials | Discovered new exit (range 14) 845 | -10/Materials | Discovered new exit (range 8) 933 | -10/Materials | Discovered new exit (range 16) 1052 | -10/Materials | Core integrity fell below 20% 1115 | -10/Materials | Destroyed by G-34 Mercenary with Small Laser Last Messages --------------- prevent passage and contain the threat. >>Prototypes Downloading prototype IDs... Imp. EM Shotgun Imp. Assault Rifle Cld. Ion Engine ALERT: Suspicious activity at Terminal M006. Dispatching Investigation squad. Acquired Sml. Battery. K-01 Serf collects debris. G-34 Mercenary destroyed. K-01 Serf collects debris. Dropped Sml. Battery. Acquired Sml. Laser. Connecting with Recycling Unit... >>Retrieve(Components) Retrieving 1 components... Imp. Aluminum Leg ALERT: Suspicious activity at Recycling Unit M002. Dispatching Investigation squad. Map ----- +----------------------------------------------------+ | | | | | | | | | | | | | | | ??????????????????????????????????? | | ??????????????????????????????????? | | ??????????????????????????????????? | | ?????????????????????????########## | | ????????????????#####????#! # | | ???????????????##"""##???# """ # | | ??????????????##"|||"##??# """ # | | ??????????????#"" ""#??# """ # | | ??????????????# #### # | | ??????????????# < # # # | | ??????????????# # # # | | ??????????????# # + ""T"" # | | ???????????????# ## # """"" # | | ??????########### ### ########## | | ??????# # # # | | ??????# %+ #! """# | | ??????# # """ # = Y"# | | ??????# # """ #%= """# | | ??????########### """ @=! # | | ????############# gg# """ # | | ??? ^= # """ # | | ??????# =%""" # """ # | | ??????# """ # # | | ??????########### """ ########## | | ????????????????#*! #???????? | | ????????????????#%^* #???????? | | ????????????????#!=""" #???????? | | ????????????????# """ #???????? | | ????????????????# """ #???????? | | ????????????????# #???????? | | ????????????????# #???????? | | ????????????????# ########???????? | | ?????????? ?????# #??????????????? | | ???????? ??????# #??????########? | | ###??? ????????# #??????#!!==||#? | | ###+########### #####??#!!==||#? | | #??# #? | | < #### #??? | | = #??? | | [ #??? | | ################### #??? | | ??????????????????# " """ #??? | | ??????????????????# """ """ #??? | +----------------------------------------------------+ Best States ------------- Heat Dissipation 25 Energy Generation 10 Energy Capacity 250 Matter Stores 300 Matter Capacity 300 Sight Range 16 Terrain Scan Density 10 Armor Coverage 225 Evasion (%) 50 Targeting Accuracy 5 Recoil Reduction 2 Item Schematics ----------------- None Robot Schematics ------------------ None Fabricated ------------ Nothing Alien Tech Used ----------------- None Achievements -------------- None Challenges ------------ None Game ------ Seed CannonPointAutocannon Manual? 0 Play Time 00:16:07 Cumulative 6.2 hours Start 2020.08.16 @ 17:31:13 End 2020.08.16 @ 17:45:05 Sessions 1 Manual Loads 0 Difficulty Rogue Special Mode None Game No. 8 Rogue 8 Adventurer 0 Explorer 0 Win Type - Total 0 Types 0/0/0/0/0/0/0 Lore% 4 Gallery% 9 Achievement% 12 Wizard Run 0 Options --------- ASCII 0 Keyboard 0 Movement Mouse Keybinds 0 Fullscreen 1 Font 18/SmallcapsGlow Map View 76x50 Tactical HUD 0 Map Filters NONE Filters NONE Steam 1 RUN: 9c633756-793a-4ca2-9d31-c01e2c612365